fUSD/lending_fUSD_20240126
["ID","MTS","AMOUNT","RATE_DAILY","PERIOD"]
[312820232,1706296258382,-183.0,0.0004149,52]
[312820233,1706296258391,-151.0126,0.00041498,14]
[312820234,1706296258401,-5000.0,0.000415,35]
[312820235,1706296258411,-150.57471312,0.00041514,12]
[312820236,1706296258422,-184.54931452,0.00041522,4]
[312820237,1706296258433,-150.0,0.00041625,30]
[312820238,1706296258441,-2169.63314547,0.00041629,13]
[312820239,1706296258451,-1000.0,0.00041644,15]
[312820240,1706296258460,-1000.0,0.00041644,15]
[312820241,1706296258469,-1998.1,0.000417,2]
[312820242,1706296258480,-372.0,0.000417,31]
[312820243,1706296258490,-1304.162916,0.00041747,30]
[312820244,1706296258499,-176.74972,0.00041747,30]
[312820245,1706296258509,-150.0,0.00041786,30]
[312820246,1706296258518,-151.0127,0.00041798,12]
[312820247,1706296258527,-1378.29,0.000418,7]
[312820248,1706296258535,-17500.0,0.000418,37]
[312820249,1706296258544,-40366.72621301,0.000418,4]
[312820250,1706296258553,-154.0,0.000418,7]
[312820251,1706296258562,-2745.15371042,0.00041847,5]
[312820252,1706296258572,-187.96838682,0.000419,30]
[312820253,1706296258581,-39153.6,0.000419,7]
[312820254,1706296258590,-90000.0,0.000419,30]
[312820255,1706296258599,-1998.1,0.000419,2]
[312820256,1706296258608,-7448.17,0.000419,4]
[312820257,1706296258617,-7448.17,0.000419,4]
[312820258,1706296258626,-7448.17,0.000419,4]
[312820259,1706296258635,-7448.17,0.000419,4]
[312820260,1706296258644,-7448.17,0.000419,4]
[312820261,1706296258653,-7448.17,0.000419,4]
[312820262,1706296258662,-7448.17,0.000419,4]
[312820263,1706296258671,-7448.17,0.000419,4]
[312820264,1706296258680,-7448.17,0.000419,4]
[312820265,1706296258689,-7448.17,0.000419,4]
[312820266,1706296258698,-7448.17,0.000419,4]
[312820267,1706296258707,-7448.17,0.000419,4]
[312820268,1706296258716,-7448.17,0.000419,4]
[312820269,1706296258725,-7448.17,0.000419,4]
[312820270,1706296258734,-7448.17,0.000419,4]
[312820271,1706296258743,-7448.17,0.000419,4]
[312820272,1706296258754,-7448.17,0.000419,4]
[312820273,1706296258763,-7448.17,0.000419,4]
[312820274,1706296258772,-7448.17,0.000419,4]
[312820275,1706296258782,-7448.17,0.000419,4]
[312820276,1706296258791,-158.26,0.000419,3]
[312820277,1706296258800,-158.26,0.000419,3]
[312820278,1706296258810,-158.26,0.000419,3]
[312820279,1706296258819,-158.26,0.000419,3]
[312820280,1706296258829,-158.26,0.000419,3]
[312820281,1706296258840,-158.26,0.000419,3]
[312820282,1706296258851,-158.26,0.000419,3]
[312820283,1706296258861,-158.26,0.000419,3]
[312820284,1706296258870,-158.26,0.000419,3]
[312820285,1706296258880,-158.26,0.000419,3]
[312820286,1706296258890,-152.96,0.000419,4]
[312820287,1706296258901,-152.96,0.000419,4]
[312820288,1706296258913,-152.96,0.000419,4]
[312820289,1706296258922,-152.96,0.000419,4]
[312820290,1706296258932,-152.96,0.000419,4]
[312820291,1706296258942,-152.96,0.000419,4]
[312820292,1706296258952,-152.96,0.000419,4]
[312820293,1706296258962,-152.96,0.000419,4]
[312820294,1706296258971,-152.96,0.000419,4]
[312820295,1706296258982,-152.96,0.000419,4]
[312820296,1706296258991,-152.96,0.000419,4]
[312820297,1706296259001,-152.96,0.000419,4]
[312820298,1706296259010,-152.96,0.000419,4]
[312820299,1706296259019,-152.96,0.000419,4]
[312820300,1706296259029,-152.96,0.000419,4]
[312820301,1706296259038,-152.96,0.000419,4]
[312820302,1706296259047,-150.0,0.00041946,30]
[312820303,1706296259057,-750.56,0.00041958,2]
[312820304,1706296259067,-590.0,0.0004199,2]
[312820305,1706296259076,-50000.0,0.00042,22]
[312820306,1706296259086,-1998.13186758,0.00042,30]
[312820307,1706296259095,-20000.0,0.00042,10]
[312820308,1706296259104,-701.94354674,0.00042,4]
[312820309,1706296259114,-320.9783178,0.00042,120]
[312820310,1706296259123,-16350.57587528,0.00042,2]
[312820311,1706296259133,-300.0,0.00042,28]
[312820312,1706296259234,-3441.05395759,0.00042,30]
[312820313,1706296259244,-275.37036611,0.00042,30]
[312820314,1706296259253,-2087.17379262,0.00042,30]
[312820315,1706296259262,-6429.36,0.00042,7]
[312820316,1706296259271,-169.41112455,0.00042,120]
[312820317,1706296259280,-165.0,0.00042,30]
[312820318,1706296259289,-1007.73689431,0.00042,6]
[312820319,1706296259298,-346.0,0.00042,30]
[312820320,1706296259307,-561.51258675,0.00042,4]
[312820321,1706296259316,-729.91483169,0.00042,4]
[312820322,1706296259325,-200.0,0.00042,2]
[312820323,1706296259334,-150.0,0.00042,30]
[312820324,1706296259343,-200.0,0.00042,2]
[312820325,1706296259352,-150.0,0.00042,13]
[312820326,1706296259361,-150.0,0.00042,17]
[312820327,1706296259370,-163.76,0.00042009,2]
[312820328,1706296259379,-943.19,0.00042055,2]
[312820329,1706296259388,-943.19,0.00042055,2]
[312820330,1706296259398,-161.97,0.00042055,2]
[312820331,1706296259407,-666.0,0.000421,4]
[312820332,1706296259416,-150.0,0.00042107,30]
[312820333,1706296259425,-150.0,0.00042159,120]
[312820334,1706296259434,-380.678793,0.000422,32]
[312820335,1706296259442,-1000.0,0.00042205,2]
[312820336,1706296259452,-150.0,0.00042242,120]
[312820337,1706296259461,-1304.162916,0.00042256,30]
[312820338,1706296259470,-176.74972,0.00042256,30]
[312820339,1706296259479,-150.57471312,0.00042258,15]
[312820340,1706296259488,-150.0,0.00042268,30]
[312820341,1706296259497,-150.0,0.000423,30]
[312820342,1706296259506,-9499.99999901,0.00042348,15]
[312820343,1706296259515,-150.0,0.00042394,2]
[312820344,1706296259524,-2000.01024304,0.000424,50]
[312820345,1706296259533,-150.0,0.00042429,30]
[312820346,1706296259543,-877.984816,0.00042466,14]
[312820347,1706296259552,-151.0126,0.00042498,14]
[312820348,1706296259561,-150.0,0.0004254,120]
[312820349,1706296259570,-206.0,0.00042583,28]
[312820350,1706296259579,-150.0,0.00042589,30]
[312820351,1706296259587,-366.04607581,0.00042648,4]
[312820352,1706296259597,-284.08397793,0.00042648,4]
[312820353,1706296259606,-150.0,0.0004275,30]
[312820354,1706296259615,-150.0,0.0004275,30]
[312820355,1706296259624,-1304.162916,0.00042765,30]
[312820356,1706296259634,-176.74972,0.00042765,30]
[312820357,1706296259643,-151.0127,0.00042798,12]
[312820358,1706296259652,-1288.60262168,0.00042849,15]
[312820359,1706296259661,-152.0,0.00042863,9]
[312820360,1706296259670,-685.59451208,0.00042888,32]
[312820361,1706296259679,-90000.0,0.000429,30]
[312820362,1706296259688,-154.0,0.000429,30]
[312820363,1706296259697,-150.0,0.00042911,30]
[312820364,1706296259706,-933.0,0.0004299,2]
[312820365,1706296259715,-872.0,0.0004299,2]
[312820366,1706296259725,-50000.0,0.00043,23]
[312820367,1706296259734,-10327.08921803,0.00043,30]
[312820368,1706296259743,-456.49383958,0.00043,29]
[312820369,1706296259752,-1000.0,0.00043,9]
[312820370,1706296259761,-25591.29403835,0.00043,2]
[312820371,1706296259770,-2104.99696213,0.00043,90]
[312820372,1706296259779,-165.0,0.00043,30]
[312820373,1706296259788,-1000.0,0.00043,6]
[312820374,1706296259797,-341.7449161,0.00043,44]
[312820375,1706296259807,-346.0,0.00043,30]
[312820376,1706296259817,-726.09498037,0.00043,20]
[312820377,1706296259826,-150.03046693,0.00043,2]
[312820378,1706296259834,-1000.0,0.00043,3]
[312820379,1706296259843,-1998.1,0.00043,2]
[312820380,1706296259853,-9445.72,0.00043,7]
[312820381,1706296259862,-150.0,0.00043,14]
[312820382,1706296259871,-150.0,0.00043,18]
[312820383,1706296259881,-150.57471312,0.00043003,18]
[312820384,1706296259890,-303.9,0.0004306,2]
[312820385,1706296259901,-150.0,0.00043071,30]
[312820386,1706296259912,-39153.6,0.000432,7]
[312820387,1706296259922,-1378.29,0.000432,7]
[312820388,1706296259931,-1998.1,0.000432,2]
[312820389,1706296259940,-150.0,0.000432,30]
[312820390,1706296259949,-150.0,0.00043232,30]
[312820391,1706296259959,-2465.85400027,0.000433,30]
[312820392,1706296259968,-150.0,0.00043393,30]
[312820393,1706296259977,-2500.000001,0.000434,55]
[312820394,1706296259988,-150.0,0.00043403,2]
[312820395,1706296259999,-2745.15371042,0.00043426,5]
[312820396,1706296260008,-151.0126,0.00043498,16]
[312820397,1706296260017,-150.0,0.000435,30]
[312820398,1706296260026,-150.0,0.00043554,30]
[312820399,1706296260036,-877.984816,0.00043562,14]
[312820400,1706296260044,-1000.0,0.00043677,2]
[312820401,1706296260053,-150.0,0.00043714,30]
[312820402,1706296260063,-150.57471312,0.00043748,20]
[312820403,1706296260073,-151.0127,0.00043798,12]
[312820404,1706296260083,-1000.0,0.000438,2]
[312820405,1706296260092,-8182.82,0.00043836,2]
[312820406,1706296260101,-163.76,0.00043836,2]
[312820407,1706296260110,-150.0,0.00043875,30]
[312820408,1706296260119,-1037.0,0.0004389,2]
[312820409,1706296260128,-958.0,0.0004389,2]
[312820410,1706296260137,-3005.84788743,0.000439,30]
[312820411,1706296260146,-83719.0,0.000439,30]
[312820412,1706296260155,-794.52,0.00043973,2]
[312820413,1706296260164,-150.00001,0.00043987,31]
[312820414,1706296260173,-50000.0,0.00044,24]
[312820415,1706296260182,-5775.95538236,0.00044,2]
[312820416,1706296260191,-206517.21110229,0.00044,3]
[312820417,1706296260200,-321.14581267,0.00044,30]
[312820418,1706296260209,-6641.92379238,0.00044,30]
[312820419,1706296260218,-211.16205202,0.00044,30]
[312820420,1706296260227,-982.3551689,0.00044,31]
[312820421,1706296260236,-13212.5220001,0.00044,120]
[312820422,1706296260245,-6752.99547741,0.00044,2]
[312820423,1706296260254,-4918.16291862,0.00044,2]
[312820424,1706296260263,-12625.0,0.00044,2]
[312820425,1706296260271,-165.0,0.00044,30]
[312820426,1706296260280,-823.67046515,0.00044,120]
[312820427,1706296260289,-70451.64816166,0.00044,8]
[312820428,1706296260298,-2110.0,0.00044,15]
[312820429,1706296260307,-300.0,0.00044,45]
[312820430,1706296260316,-200.29213102,0.00044,5]
[312820431,1706296260325,-346.0,0.00044,30]
[312820432,1706296260334,-700.0,0.00044,14]
[312820433,1706296260343,-150.0,0.00044,15]
[312820434,1706296260352,-154.0,0.00044,30]
[312820435,1706296260361,-150.0,0.00044036,30]
[312820436,1706296260370,-1065.03,0.00044085,15]
[312820437,1706296260379,-200.0,0.000441,2]
[312820438,1706296260388,-200.0,0.000441,2]
[312820439,1706296260397,-150.0,0.000441,30]
[312820440,1706296260407,-150.0,0.00044196,30]
[312820441,1706296260416,-750.56,0.00044222,2]
[312820442,1706296260425,-150.0,0.0004425,30]
[312820443,1706296260435,-2344.484974,0.000443,2]
[312820444,1706296260444,-366.04607581,0.00044335,4]
[312820445,1706296260453,-284.08397793,0.00044335,4]
[312820446,1706296260462,-179.0,0.00044341,2]
[312820447,1706296260470,-188.0,0.00044341,2]
[312820448,1706296260480,-150.0,0.00044357,30]
[312820449,1706296260489,-150.0,0.00044384,2]
[312820450,1706296260498,-724.0,0.0004439,2]
[312820451,1706296260507,-670.0,0.0004439,2]
[312820452,1706296260516,-16334.42490321,0.000444,2]
[312820453,1706296260525,-1378.29,0.000444,7]
[312820454,1706296260534,-2500.000001,0.000444,60]
[312820455,1706296260542,-150.0,0.00044412,2]
[312820456,1706296260552,-5113.6009086,0.0004449,2]
[312820457,1706296260561,-150.57471312,0.00044492,23]
[312820458,1706296260570,-151.0126,0.00044498,16]
[312820459,1706296260579,-39153.6,0.000445,7]
[312820460,1706296260588,-2164.07,0.000445,15]
[312820461,1706296260597,-1998.1,0.000445,2]
[312820462,1706296260606,-150.0,0.00044518,30]
[312820463,1706296260615,-877.984816,0.00044658,14]
[312820464,1706296260624,-150.0,0.00044679,30]
[312820465,1706296260633,-5719.0,0.0004469,2]
[312820466,1706296260642,-5296.0,0.0004469,2]
[312820467,1706296260651,-171598.87437667,0.000447,2]
[312820468,1706296260660,-152.0,0.00044713,10]
[312820469,1706296260669,-252.42371909,0.00044713,5]
[312820470,1706296260678,-152.0,0.00044713,5]
[312820471,1706296260687,-479.25823709,0.0004475,30]
[312820472,1706296260696,-2169.63314547,0.0004475,17]
[312820473,1706296260705,-303.9,0.0004477,2]
[312820474,1706296260714,-151.0127,0.00044798,12]
[312820475,1706296260723,-352.5529,0.000448,30]
[312820476,1706296260732,-150.0,0.00044839,30]
[312820477,1706296260741,-151.0,0.00044897,10]
[312820478,1706296260751,-456737.95632628,0.000449,30]
[312820479,1706296260760,-90000.0,0.000449,30]
[312820480,1706296260769,-400.0,0.0004497,3]
[312820481,1706296260778,-300.0,0.0004497,3]
[312820482,1706296260787,-5000.0,0.00044986,4]
[312820483,1706296260796,-200.0,0.00044987,10]
[312820484,1706296260805,-721.0,0.0004499,2]
[312820485,1706296260815,-150.0,0.00044999,2]
[312820486,1706296260913,-50000.0,0.00045,25]
[312820487,1706296260922,-1000.0,0.00045,10]
[312820488,1706296260931,-250.0,0.00045,39]
[312820489,1706296260941,-165.55830047,0.00045,10]
[312820490,1706296260951,-587.31,0.00045,7]
[312820491,1706296260959,-500.0,0.00045,7]
[312820492,1706296260968,-203.53927192,0.00045,60]
[312820493,1706296260978,-250.0,0.00045,30]
[312820494,1706296260987,-2000.0,0.00045,7]
[312820495,1706296260997,-833.35013416,0.00045,60]
[312820496,1706296261006,-32785.62678295,0.00045,4]
[312820497,1706296261015,-316.01671829,0.00045,2]
[312820498,1706296261024,-1000.0,0.00045,90]
[312820499,1706296261033,-1000.0,0.00045,2]
[312820500,1706296261042,-752.55895557,0.00045,2]
[312820501,1706296261052,-100218.342,0.00045,14]
[312820502,1706296261061,-150.0,0.00045,26]
[312820503,1706296261071,-1285.46824328,0.00045,21]
[312820504,1706296261080,-963.0841794,0.00045,30]
[312820505,1706296261089,-165.0,0.00045,30]
[312820506,1706296261099,-300.0,0.00045,46]
[312820507,1706296261108,-346.0,0.00045,30]
[312820508,1706296261117,-294.16326032,0.00045,2]
[312820509,1706296261126,-167.43358517,0.00045,30]
[312820510,1706296261135,-499.99999999,0.00045,30]
[312820511,1706296261145,-10641.9344309,0.00045,30]
[312820512,1706296261154,-190.80107995,0.00045,30]
[312820513,1706296261163,-151.491971,0.00045,30]
[312820514,1706296261173,-155.28140055,0.00045,4]
[312820515,1706296261182,-1050.0,0.00045,3]
[312820516,1706296261193,-2015.40552288,0.00045,4]
[312820517,1706296261202,-2142.86760396,0.00045,2]
[312820518,1706296261212,-1769.269346,0.00045,17]
[312820519,1706296261222,-504.870324,0.00045,9]
[312820520,1706296261231,-276.378703,0.00045,10]
[312820521,1706296261241,-150.0,0.00045,16]
[312820522,1706296261250,-634.0,0.00045,2]
[312820523,1706296261261,-18078.0,0.00045,2]
[312820524,1706296261270,-211.18415935,0.00045,2]
[312820525,1706296261281,-500.0,0.00045,9]
[312820526,1706296261292,-466.48791505,0.00045,9]
[312820527,1706296261302,-202.7576441,0.00045,30]
[312820528,1706296261310,-252.82364583,0.00045,30]
[312820529,1706296261319,-153.73440904,0.00045,30]
[312820530,1706296261329,-2745.15371042,0.00045005,5]
[312820531,1706296261338,-5000.0,0.00045068,4]
[312820532,1706296261348,-5000.0,0.00045068,4]
[312820533,1706296261357,-5000.0,0.00045068,4]
[312820534,1706296261368,-5000.0,0.00045068,4]
[312820535,1706296261376,-5000.0,0.00045068,4]
[312820536,1706296261386,-5000.0,0.00045068,4]
[312820537,1706296261396,-2370.67051631,0.00045068,4]
[312820538,1706296261406,-154.0,0.000451,30]
[312820539,1706296261415,-5000.0,0.00045118,4]
[312820540,1706296261424,-254.3475,0.0004514,30]
[312820541,1706296261434,-1000.0,0.00045149,2]
[312820542,1706296261443,-155.67,0.00045205,2]
[312820543,1706296261452,-150.57471312,0.00045237,26]
[312820544,1706296261462,-150.0,0.00045422,2]
[312820545,1706296261471,-206.0,0.00045486,33]
[312820546,1706296261480,-151.0126,0.00045498,29]
[312820547,1706296261490,-310.0,0.000455,2]
[312820548,1706296261499,-163.76,0.00045662,2]
[312820549,1706296261508,-5000.0,0.00045706,4]
[312820550,1706296261517,-877.984816,0.00045753,14]
[312820551,1706296261527,-151.0127,0.00045798,12]
[312820552,1706296261536,-1998.1,0.000458,2]
[312820553,1706296261545,-477.64031487,0.0004588,100]
[312820554,1706296261556,-942.71,0.0004589,2]
[312820555,1706296261565,-402.31,0.0004589,2]
[312820556,1706296261575,-1024.78,0.0004589,2]
[312820557,1706296261585,-1378.29,0.000459,7]
[312820558,1706296261595,-379.93,0.000459,2]
[312820559,1706296261605,-380.0,0.000459,2]
[312820560,1706296261614,-380.0,0.000459,2]
[312820561,1706296261623,-380.0,0.000459,2]
[312820562,1706296261632,-380.0,0.000459,2]
[312820563,1706296261641,-380.0,0.000459,2]
[312820564,1706296261652,-380.0,0.000459,2]
[312820565,1706296261662,-380.0,0.000459,2]
[312820566,1706296261672,-301.02,0.000459,2]
[312820567,1706296261683,-90000.0,0.000459,30]
[312820568,1706296261692,-150.57471312,0.00045981,29]
[312820569,1706296261702,-200.0,0.00045987,12]
[312820570,1706296261711,-50000.0,0.00046,26]
[312820571,1706296261720,-250.0,0.00046,40]
[312820572,1706296261730,-250.0,0.00046,30]
[312820573,1706296261739,-3205.0,0.00046,30]
[312820574,1706296261748,-1000.0,0.00046,120]
[312820575,1706296261758,-165.25641242,0.00046,2]
[312820576,1706296261767,-300.0,0.00046,47]
[312820577,1706296261776,-350.9757128,0.00046,2]
[312820578,1706296261786,-310.0,0.00046,2]
[312820579,1706296261795,-150.0,0.00046,17]
[312820580,1706296261805,-366.04607581,0.00046023,6]
[312820581,1706296261815,-284.08397793,0.00046023,6]
[312820582,1706296261825,-150.0,0.00046077,120]
[312820583,1706296261835,-200.0,0.000462,2]
[312820584,1706296261844,-200.0,0.000462,2]
[312820585,1706296261854,-154.0,0.000462,30]
[312820586,1706296261864,-5000.0,0.00046294,4]
[312820587,1706296261874,-39153.6,0.000463,7]
[312820588,1706296261883,-328.24,0.00046301,2]
[312820589,1706296261892,-328.24,0.00046301,2]
[312820590,1706296261908,-328.24,0.00046301,2]
[312820591,1706296261918,-328.24,0.00046301,2]
[312820592,1706296261928,-583.92,0.00046301,2]
[312820593,1706296261937,-328.24,0.00046301,2]
[312820594,1706296261948,-150.0,0.00046431,2]
[312820595,1706296261957,-564.530038,0.0004648,2]
[312820596,1706296261968,-750.56,0.00046486,2]
[312820597,1706296261978,-151.0126,0.00046498,29]
[312820598,1706296261990,-5000.0,0.000465,45]
[312820599,1706296262000,-402.63952388,0.000465,2]
[312820600,1706296262010,-187.5,0.00046575,120]
[312820601,1706296262020,-2745.15371042,0.00046584,5]
[312820602,1706296262032,-1000.0,0.000466,2]
[312820603,1706296262042,-150.57471312,0.00046726,32]
[312820604,1706296262051,-151.0127,0.00046798,16]
[312820605,1706296262060,-3863.18,0.00046849,120]
[312820606,1706296262070,-7522.96,0.00046849,120]
[312820607,1706296262079,-5000.0,0.00046882,4]
[312820608,1706296262088,-7000.0,0.00046933,2]
[312820609,1706296262098,-50000.0,0.00046961,30]
[312820610,1706296262107,-1000.0,0.00046967,30]
[312820611,1706296262117,-1000.0,0.00046967,30]
[312820612,1706296262126,-200.0,0.00046987,13]
[312820613,1706296262136,-4999.0,0.0004699,2]
[312820614,1706296262145,-4616.0,0.0004699,2]
[312820615,1706296262155,-50000.0,0.00047,27]
[312820616,1706296262164,-250.0,0.00047,41]
[312820617,1706296262173,-471.65779666,0.00047,2]
[312820618,1706296262182,-119581.12688211,0.00047,5]
[312820619,1706296262192,-250.0,0.00047,60]
[312820620,1706296262201,-169.53670214,0.00047,4]
[312820621,1706296262210,-155.83049082,0.00047,4]
[312820622,1706296262219,-425.52081341,0.00047,30]
[312820623,1706296262229,-6429.36,0.00047,7]
[312820624,1706296262238,-150561.14139114,0.00047,2]
[312820625,1706296262247,-300.0,0.00047,48]
[312820626,1706296262257,-1100.0,0.00047,3]
[312820627,1706296262269,-150.0,0.00047,18]
[312820628,1706296262282,-1998.1,0.000471,2]
[312820629,1706296262291,-328.24,0.00047123,2]
[312820630,1706296262302,-328.24,0.00047123,2]
[312820631,1706296262311,-328.24,0.00047123,2]
[312820632,1706296262321,-203.84,0.00047123,2]
[312820633,1706296262332,-154.0,0.000473,30]
[312820634,1706296262343,-150.0,0.0004744,2]
[312820635,1706296262353,-150.57471312,0.0004747,35]
[312820636,1706296262363,-5000.0,0.00047471,4]
[312820637,1706296262374,-163.76,0.00047489,2]
[312820638,1706296262383,-151.0126,0.00047498,29]
[312820639,1706296262393,-400.0,0.000475,3]
[312820640,1706296262403,-1378.29,0.000475,7]
[312820641,1706296262413,-1439.0,0.0004769,2]
[312820642,1706296262423,-158.18588323,0.00047701,15]
[312820643,1706296262432,-366.04607581,0.0004771,7]
[312820644,1706296262443,-284.08397793,0.0004771,7]
[312820645,1706296262453,-151.0127,0.00047798,16]
[312820646,1706296262546,-7448.17,0.000478,5]
[312820647,1706296262556,-7448.17,0.000478,5]
[312820648,1706296262565,-7448.17,0.000478,5]
[312820649,1706296262575,-7448.17,0.000478,5]
[312820650,1706296262585,-7448.17,0.000478,5]
[312820651,1706296262594,-7448.17,0.000478,5]
[312820652,1706296262604,-7448.17,0.000478,5]
[312820653,1706296262615,-7448.17,0.000478,5]
[312820654,1706296262626,-7448.17,0.000478,5]
[312820655,1706296262635,-7448.17,0.000478,5]
[312820656,1706296262644,-7448.17,0.000478,5]
[312820657,1706296262654,-7448.17,0.000478,5]
[312820658,1706296262664,-7448.17,0.000478,5]
[312820659,1706296262673,-7448.17,0.000478,5]
[312820660,1706296262682,-7448.17,0.000478,5]
[312820661,1706296262691,-7448.17,0.000478,5]
[312820662,1706296262700,-7448.17,0.000478,5]
[312820663,1706296262709,-7448.17,0.000478,5]
[312820664,1706296262718,-7448.17,0.000478,5]
[312820665,1706296262726,-7448.17,0.000478,5]
[312820666,1706296262736,-158.26,0.000478,3]
[312820667,1706296262744,-158.26,0.000478,3]
[312820668,1706296262753,-158.26,0.000478,3]
[312820669,1706296262762,-158.26,0.000478,3]
[312820670,1706296262772,-158.26,0.000478,3]
[312820671,1706296262781,-158.26,0.000478,3]
[312820672,1706296262790,-158.26,0.000478,3]
[312820673,1706296262798,-158.26,0.000478,3]
[312820674,1706296262807,-158.26,0.000478,3]
[312820675,1706296262817,-158.26,0.000478,3]
[312820676,1706296262826,-152.96,0.000478,5]
[312820677,1706296262835,-152.96,0.000478,5]
[312820678,1706296262846,-152.96,0.000478,5]
[312820679,1706296262856,-152.96,0.000478,5]
[312820680,1706296262865,-152.96,0.000478,5]
[312820681,1706296262875,-152.96,0.000478,5]
[312820682,1706296262885,-152.96,0.000478,5]
[312820683,1706296262894,-152.96,0.000478,5]
[312820684,1706296262905,-152.96,0.000478,5]
[312820685,1706296262914,-152.96,0.000478,5]
[312820686,1706296262924,-152.96,0.000478,5]
[312820687,1706296262934,-152.96,0.000478,5]
[312820688,1706296262943,-152.96,0.000478,5]
[312820689,1706296262952,-152.96,0.000478,5]
[312820690,1706296262961,-152.96,0.000478,5]
[312820691,1706296262971,-152.96,0.000478,5]
[312820692,1706296262982,-47189.45565193,0.000478,2]
[312820693,1706296262992,-1884.04,0.00047808,2]
[312820694,1706296263001,-402.52,0.00047808,2]
[312820695,1706296263010,-402.52,0.00047808,2]
[312820696,1706296263019,-402.52,0.00047808,2]
[312820697,1706296263028,-1065.03,0.00047821,15]
[312820698,1706296263038,-2169.63314547,0.00047871,20]
[312820699,1706296263047,-3840.34782704,0.00047888,10]
[312820700,1706296263056,-50000.0,0.00047889,30]
[312820701,1706296263066,-200.26205624,0.000479,28]
[312820702,1706296263076,-500.0,0.00047945,30]
[312820703,1706296263085,-200.0,0.00047987,15]
[312820704,1706296263095,-50000.0,0.00048,28]
[312820705,1706296263104,-400.0,0.00048,4]
[312820706,1706296263113,-1040.73010292,0.00048,14]
[312820707,1706296263123,-500.0,0.00048,7]
[312820708,1706296263133,-250.0,0.00048,60]
[312820709,1706296263142,-39153.6,0.00048,7]
[312820710,1706296263153,-4482.74235256,0.00048,35]
[312820711,1706296263163,-43885.39546471,0.00048,120]
[312820712,1706296263173,-17751.39,0.00048,120]
[312820713,1706296263182,-300.0,0.00048,49]
[312820714,1706296263192,-2653.45680836,0.00048,14]
[312820715,1706296263202,-150.0,0.00048,19]
[312820716,1706296263213,-5000.0,0.00048059,4]
[312820717,1706296263223,-2745.15371042,0.00048163,5]
[312820718,1706296263234,-450.0,0.000482,14]
[312820719,1706296263245,-150.57471312,0.00048215,37]
[312820720,1706296263255,-1007.25330529,0.000483,4]
[312820721,1706296263266,-200.0,0.000483,2]
[312820722,1706296263277,-316.29178502,0.000483,2]
[312820723,1706296263287,-206.0,0.00048389,38]
[312820724,1706296263297,-1998.1,0.000484,2]
[312820725,1706296263306,-154.0,0.000484,60]
[312820726,1706296263316,-150.0,0.0004845,2]
[312820727,1706296263326,-151.0126,0.00048498,29]
[312820728,1706296263336,-400.0,0.000485,5]
[312820729,1706296263346,-13584.06761722,0.000485,10]
[312820730,1706296263355,-10000.0,0.00048574,4]
[312820731,1706296263367,-150.1,0.00048612,4]